fUSD/lending_fUSD_20251210
["ID","MTS","AMOUNT","RATE_DAILY","PERIOD"]
[398111334,1765379444201,-500.0,0.00029355,2]
[398111335,1765379444211,-500.0,0.00029355,2]
[398111336,1765379444220,-500.0,0.00029355,2]
[398111337,1765379444230,-500.0,0.00029355,2]
[398111338,1765379444239,-500.0,0.00029355,2]
[398111339,1765379444248,-500.0,0.00029355,2]
[398111340,1765379444258,-500.0,0.00029355,2]
[398111341,1765379444268,-500.0,0.00029355,2]
[398111342,1765379444277,-500.0,0.00029355,2]
[398111343,1765379444286,-500.0,0.00029355,2]
[398111344,1765379444296,-500.0,0.00029355,2]
[398111345,1765379444306,-500.0,0.00029355,2]
[398111346,1765379444315,-500.0,0.00029355,2]
[398111347,1765379444325,-500.0,0.00029355,2]
[398111348,1765379444334,-500.0,0.00029355,2]
[398111349,1765379444343,-500.0,0.00029355,2]
[398111350,1765379444352,-500.0,0.00029355,2]
[398111351,1765379444363,-500.0,0.00029355,2]
[398111352,1765379444373,-500.0,0.00029355,2]
[398111353,1765379444383,-500.0,0.00029355,2]
[398111354,1765379444392,-500.0,0.00029355,2]
[398111355,1765379444403,-500.0,0.00029355,2]
[398111356,1765379444412,-500.0,0.00029355,2]
[398111357,1765379444421,-500.0,0.00029355,2]
[398111358,1765379444430,-500.0,0.00029355,2]
[398111359,1765379444439,-519.0,0.00029355,2]
[398111360,1765379444450,-1450.832,0.00029405,2]
[398111361,1765379444461,-1317.96,0.00029492,30]
[398111362,1765379444470,-168.0,0.00029507,2]
[398111363,1765379444480,-364.28367,0.0002952,2]
[398111364,1765379444489,-168.0,0.0002952,2]
[398111365,1765379444498,-151.0,0.00029607,7]
[398111366,1765379444508,-168.0,0.00029657,2]
[398111367,1765379444518,-182.22,0.00029736,2]
[398111368,1765379444528,-1301.0,0.00029823,2]
[398111369,1765379444538,-312.0,0.0003,2]
[398111370,1765379444547,-168.0,0.00030049,2]
[398111371,1765379444556,-168.0,0.00030052,2]
[398111372,1765379444565,-168.0,0.00030063,2]
[398111373,1765379444574,-691.39774486,0.00030094,2]
[398111374,1765379444584,-151.0,0.00030094,7]
[398111375,1765379444593,-177.478698,0.00030094,7]
[398111376,1765379444602,-151.0,0.00030094,7]
[398111377,1765379444611,-151.0,0.00030094,7]
[398111378,1765379444620,-151.0,0.00030094,7]
[398111379,1765379444629,-7719.55085124,0.00030128,2]
[398111380,1765379444638,-251.0,0.00030205,14]
[398111381,1765379444647,-168.0,0.00030232,2]
[398111382,1765379444656,-248.81,0.000303,30]
[398111383,1765379444665,-1301.0,0.00030371,2]
[398111384,1765379444675,-364.28367,0.0003052,2]
[398111385,1765379444684,-168.0,0.00030545,2]
[398111386,1765379444693,-245.4670043,0.00030547,2]
[398111387,1765379444702,-168.0,0.00030612,2]
[398111388,1765379444711,-168.0,0.00030807,2]
[398111389,1765379444721,-1301.0,0.00030919,2]
[398111390,1765379444730,-168.0,0.00030964,7]
[398111391,1765379444739,-168.0,0.00030984,2]
[398111392,1765379444749,-181.62,0.00031006,2]
[398111393,1765379444758,-168.0,0.0003107,2]
[398111394,1765379444767,-168.0,0.00031186,7]
[398111395,1765379444776,-168.0,0.00031342,2]
[398111396,1765379444785,-548.60225514,0.00031463,2]
[398111397,1765379444794,-1301.0,0.00031467,2]
[398111398,1765379444804,-168.0,0.00031476,2]
[398111399,1765379444813,-248.81,0.000315,30]
[398111400,1765379444822,-168.0,0.00031502,2]
[398111401,1765379444831,-364.28367,0.0003152,2]
[398111402,1765379444840,-1000.0,0.00031654,2]
[398111403,1765379444849,-257.0,0.00031716,14]
[398111404,1765379444859,-237.573035,0.00031833,31]
[398111405,1765379444868,-151.0,0.00031833,31]
[398111406,1765379444877,-151.0,0.00031833,31]
[398111407,1765379444887,-151.0,0.00031833,31]
[398111408,1765379444896,-151.0,0.00031833,31]
[398111409,1765379444906,-223.0315306,0.00031844,2]
[398111410,1765379444917,-168.0,0.00031961,2]
[398111411,1765379444926,-7719.55085124,0.00031985,2]
[398111412,1765379444936,-1000.0,0.00032,2]
[398111413,1765379444946,-1301.0,0.00032015,2]
[398111414,1765379444955,-159.31396366,0.000324,2]
[398111415,1765379444966,-1000.0,0.000325,7]
[398111416,1765379444976,-151.0,0.00032874,14]
[398111417,1765379444985,-151.0,0.00032877,31]
[398111418,1765379444995,-151.0,0.00032877,31]
[398111419,1765379445004,-151.0,0.00032877,31]
[398111420,1765379445013,-151.0,0.00032877,31]
[398111421,1765379445023,-151.0,0.00032877,31]
[398111422,1765379445032,-151.0,0.00032877,31]
[398111423,1765379445042,-151.0,0.00032877,31]
[398111424,1765379445051,-151.0,0.00032877,31]
[398111425,1765379445060,-170.651038,0.00032877,31]
[398111426,1765379445069,-151.0,0.00032877,31]
[398111427,1765379445079,-170.651038,0.00032877,31]
[398111428,1765379445088,-170.651038,0.00032877,31]
[398111429,1765379445097,-170.651038,0.00032877,31]
[398111430,1765379445106,-500.0,0.00032877,7]
[398111431,1765379445115,-500.0,0.00032877,7]
[398111432,1765379445125,-500.0,0.00032877,7]
[398111433,1765379445136,-500.0,0.00032877,7]
[398111434,1765379445146,-500.0,0.00032877,7]
[398111435,1765379445156,-500.0,0.00032877,7]
[398111436,1765379445165,-500.0,0.00032877,7]
[398111437,1765379445175,-500.0,0.00032877,7]
[398111438,1765379445185,-500.0,0.00032877,7]
[398111439,1765379445194,-500.0,0.00032877,7]
[398111440,1765379445204,-500.0,0.00032877,7]
[398111441,1765379445214,-500.0,0.00032877,7]
[398111442,1765379445223,-500.0,0.00032877,7]
[398111443,1765379445233,-500.0,0.00032877,7]
[398111444,1765379445243,-500.0,0.00032877,7]
[398111445,1765379445252,-500.0,0.00032877,7]
[398111446,1765379445293,-451.4532551,0.00032877,7]
[398111447,1765379445303,-500.0,0.00032877,7]
[398111448,1765379445313,-500.0,0.00032877,7]
[398111449,1765379445324,-500.0,0.00032877,7]
[398111450,1765379445334,-500.0,0.00032877,7]
[398111451,1765379445343,-500.0,0.00032877,7]
[398111452,1765379445352,-500.0,0.00032877,7]
[398111453,1765379445365,-500.0,0.00032877,7]
[398111454,1765379445374,-500.0,0.00032877,7]
[398111455,1765379445384,-280.24,0.000329,14]
[398111456,1765379445393,-1770.64,0.000329,14]
[398111457,1765379445403,-2823.25,0.00032912,2]
[398111458,1765379445413,-1000.0,0.00032964,2]
[398111459,1765379445423,-175.32956153,0.00033003,2]
[398111460,1765379445433,-168.53974508,0.00033095,2]
[398111461,1765379445443,-509.07,0.00033165,2]
[398111462,1765379445452,-248.81,0.000332,30]
[398111463,1765379445461,-1000.0,0.00033595,2]
[398111464,1765379445470,-251.0,0.0003383,30]
[398111465,1765379445480,-7719.55085124,0.00033842,2]
[398111467,1765379445490,-496.515747,0.00033859,10]
[398111469,1765379445499,-1317.96,0.00034327,30]
[398111470,1765379445509,-960.58,0.00034384,2]
[398111471,1765379445518,-703.45,0.00034384,2]
[398111472,1765379445528,-1770.64,0.000345,14]
[398111473,1765379445537,-280.24,0.000345,14]
[398111474,1765379445547,-772.33941,0.000345,10]
[398111475,1765379445556,-266.25,0.000345,30]
[398111476,1765379445565,-1000.0,0.00034534,2]
[398111477,1765379445575,-154.4946694,0.00034583,2]
[398111479,1765379445585,-1000.0,0.00034817,2]
[398111481,1765379445595,-1000.0,0.0003482,2]
[398111483,1765379445604,-1000.0,0.0003487,2]
[398111485,1765379445614,-1000.0,0.00034889,2]
[398111487,1765379445623,-11324.52247681,0.00034899,2]
[398111489,1765379445633,-1000.0,0.00034939,2]
[398111491,1765379445642,-151.0,0.00034939,31]
[398111493,1765379445652,-151.0,0.00034939,31]
[398111495,1765379445661,-582.044535,0.00034939,31]
[398111497,1765379445670,-582.044535,0.00034939,31]
[398111499,1765379445678,-399.650076,0.00034939,31]
[398111500,1765379445688,-582.044535,0.00034939,31]
[398111502,1765379445697,-399.650076,0.00034939,31]
[398111504,1765379445707,-582.044535,0.00034939,31]
[398111506,1765379445717,-151.0,0.00034939,31]
[398111507,1765379445726,-399.650076,0.00034939,31]
[398111508,1765379445735,-160.952694,0.00034939,31]
[398111509,1765379445744,-151.0,0.00034939,31]
[398111510,1765379445754,-399.650076,0.00034939,31]
[398111511,1765379445763,-160.952694,0.00034939,31]
[398111512,1765379445772,-151.0,0.00034939,31]
[398111513,1765379445781,-151.0,0.00034939,31]
[398111514,1765379445791,-160.952694,0.00034939,31]
[398111515,1765379445800,-210.576128,0.00034939,31]
[398111516,1765379445809,-300.984288,0.00034939,31]
[398111517,1765379445818,-160.952694,0.00034939,31]
[398111518,1765379445827,-1000.0,0.00034956,2]
[398111519,1765379445836,-500.0,0.00034987,10]
[398111520,1765379445846,-1000.0,0.00035227,2]
[398111521,1765379445855,-248.81,0.000353,30]
[398111522,1765379445865,-1428.22,0.00035342,2]
[398111523,1765379445875,-703.45,0.00035342,2]
[398111524,1765379445885,-480.31,0.00035342,2]
[398111525,1765379445894,-703.45,0.00035342,2]
[398111526,1765379445903,-703.12,0.00035342,2]
[398111527,1765379445913,-150.0,0.00035342,2]
[398111528,1765379445922,-300.0,0.00035342,2]
[398111529,1765379445931,-150.0,0.000354,12]
[398111530,1765379445940,-150.0,0.000354,12]
[398111531,1765379445950,-185.81,0.000354,32]
[398111532,1765379445959,-150.0,0.00035466,2]
[398111533,1765379445968,-2066.35426324,0.00035466,2]
[398111534,1765379445977,-150.0,0.00035466,2]
[398111535,1765379445987,-3145.10587161,0.00035466,2]
[398111536,1765379445996,-150.0,0.00035466,2]
[398111537,1765379446006,-1785.16353115,0.00035466,2]
[398111538,1765379446015,-150.0,0.00035466,2]
[398111539,1765379446024,-2820.17261226,0.00035466,2]
[398111540,1765379446034,-151.0,0.000355,31]
[398111541,1765379446043,-151.0,0.000355,31]
[398111542,1765379446052,-151.0,0.000355,31]
[398111543,1765379446062,-151.0,0.000355,31]
[398111544,1765379446071,-253.817332,0.000355,31]
[398111545,1765379446080,-151.0,0.000355,31]
[398111546,1765379446090,-193.383868,0.000355,31]
[398111547,1765379446099,-153.298039,0.000355,31]
[398111548,1765379446107,-153.298039,0.000355,31]
[398111549,1765379446116,-153.298039,0.000355,31]
[398111550,1765379446126,-153.298039,0.000355,31]
[398111551,1765379446136,-300.0,0.00035616,46]
[398111552,1765379446145,-7719.55085124,0.00035699,2]
[398111553,1765379446154,-1770.64,0.000357,14]
[398111554,1765379446163,-280.24,0.000357,14]
[398111555,1765379446172,-406.74,0.0003589,7]
[398111556,1765379446181,-251.0,0.00035945,30]
[398111557,1765379446190,-210.05129,0.00036,120]
[398111558,1765379446199,-5000.0,0.00036,120]
[398111559,1765379446208,-552.72,0.00036164,2]
[398111560,1765379446218,-2455.98,0.00036164,2]
[398111561,1765379446228,-150.0,0.00036164,2]
[398111562,1765379446237,-170.25,0.00036164,2]
[398111563,1765379446246,-463.74,0.00036164,2]
[398111564,1765379446255,-300.0,0.00036164,2]
[398111565,1765379446264,-1215.76,0.00036164,2]
[398111566,1765379446273,-463.74,0.00036164,2]
[398111567,1765379446282,-552.72,0.00036164,2]
[398111568,1765379446292,-238.16,0.00036164,2]
[398111569,1765379446301,-463.74,0.00036164,2]
[398111570,1765379446310,-251.0,0.00036247,30]
[398111571,1765379446320,-150.0,0.000364,14]
[398111572,1765379446329,-150.0,0.000364,14]
[398111573,1765379446337,-406.74,0.00036438,8]
[398111574,1765379446347,-1770.64,0.000365,14]
[398111575,1765379446356,-280.24,0.000365,14]
[398111576,1765379446370,-500.0,0.00036805,120]
[398111577,1765379446379,-500.0,0.00036805,120]
[398111578,1765379446389,-500.0,0.00036805,120]
[398111579,1765379446399,-500.0,0.00036805,120]
[398111580,1765379446408,-500.0,0.00036805,120]
[398111581,1765379446417,-500.0,0.00036805,120]
[398111582,1765379446426,-500.0,0.00036805,120]
[398111583,1765379446435,-353.0,0.00036805,120]
[398111584,1765379446447,-800.0,0.00036805,13]
[398111585,1765379446456,-800.0,0.00036805,13]
[398111586,1765379446466,-800.0,0.00036805,13]
[398111587,1765379446475,-800.0,0.00036805,13]
[398111588,1765379446484,-800.0,0.00036805,13]
[398111589,1765379446493,-800.0,0.00036805,13]
[398111590,1765379446503,-800.0,0.00036805,13]
[398111591,1765379446512,-800.0,0.00036805,13]
[398111592,1765379446523,-800.0,0.00036805,13]
[398111593,1765379446533,-800.0,0.00036805,13]
[398111594,1765379446543,-800.0,0.00036805,13]
[398111595,1765379446553,-800.0,0.00036805,13]
[398111596,1765379446562,-800.0,0.00036805,13]
[398111597,1765379446571,-800.0,0.00036805,13]
[398111598,1765379446581,-800.0,0.00036805,13]
[398111599,1765379446591,-800.0,0.00036805,13]
[398111600,1765379446602,-800.0,0.00036805,13]
[398111601,1765379446611,-800.0,0.00036805,13]
[398111602,1765379446620,-800.0,0.00036805,13]
[398111603,1765379446629,-800.0,0.00036805,13]
[398111604,1765379446640,-800.0,0.00036805,13]
[398111605,1765379446649,-333.0,0.00036805,13]
[398111606,1765379446659,-200.0,0.00036805,2]
[398111607,1765379446667,-200.0,0.00036805,2]
[398111608,1765379446677,-200.0,0.00036805,2]
[398111609,1765379446686,-200.0,0.00036805,2]
[398111610,1765379446695,-200.0,0.00036805,2]
[398111611,1765379446704,-200.0,0.00036805,2]
[398111612,1765379446714,-200.0,0.00036805,2]
[398111613,1765379446723,-200.0,0.00036805,2]
[398111614,1765379446733,-200.0,0.00036805,2]
[398111615,1765379446742,-200.0,0.00036805,2]
[398111616,1765379446751,-200.0,0.00036805,2]
[398111617,1765379446760,-200.0,0.00036805,2]
[398111618,1765379446769,-200.0,0.00036805,2]
[398111619,1765379446778,-200.0,0.00036805,2]
[398111620,1765379446787,-200.0,0.00036805,2]
[398111621,1765379446796,-200.0,0.00036805,2]
[398111622,1765379446805,-200.0,0.00036805,2]
[398111623,1765379446814,-333.0,0.00036805,2]
[398111624,1765379446823,-151.0,0.00036805,31]
[398111625,1765379446832,-151.0,0.00036805,31]
[398111626,1765379446842,-151.0,0.00036805,31]
[398111627,1765379446851,-288.06354,0.00036805,31]
[398111628,1765379446861,-288.06354,0.00036805,31]
[398111629,1765379446870,-288.06354,0.00036805,31]
[398111630,1765379446879,-151.0,0.00036805,31]
[398111631,1765379446891,-288.06354,0.00036805,31]
[398111632,1765379446900,-151.0,0.00036805,31]
[398111633,1765379446909,-224.972283,0.00036805,31]
[398111634,1765379446918,-151.0,0.00036805,31]
[398111635,1765379446927,-151.0,0.00036805,31]
[398111636,1765379446936,-151.0,0.00036805,31]
[398111637,1765379446945,-620.844545,0.00036805,31]
[398111638,1765379446954,-620.844545,0.00036805,31]
[398111639,1765379446963,-151.0,0.00036805,31]
[398111640,1765379446972,-151.0,0.00036805,31]
[398111641,1765379446982,-620.844545,0.00036805,31]
[398111642,1765379446991,-151.0,0.00036805,31]
[398111643,1765379447000,-250.354027,0.00036805,31]
[398111644,1765379447010,-620.844545,0.00036805,31]
[398111645,1765379447019,-194.512108,0.00036805,31]
[398111646,1765379447028,-175.596144,0.00036805,31]
[398111647,1765379447037,-175.596144,0.00036805,31]
[398111648,1765379447046,-175.596144,0.00036805,31]
[398111649,1765379447055,-151.0,0.00036805,31]
[398111650,1765379447064,-175.596144,0.00036805,31]
[398111651,1765379447073,-151.0,0.00036805,31]
[398111652,1765379447083,-328.10831,0.00036805,31]
[398111653,1765379447092,-151.0,0.00036805,31]
[398111654,1765379447101,-348.449957,0.00036805,31]
[398111655,1765379447110,-328.10831,0.00036805,31]
[398111656,1765379447119,-348.449957,0.00036805,31]
[398111657,1765379447129,-328.10831,0.00036805,31]
[398111658,1765379447138,-348.449957,0.00036805,31]
[398111659,1765379447147,-328.10831,0.00036805,31]
[398111660,1765379447157,-348.449957,0.00036805,31]
[398111661,1765379447166,-157.521218,0.00036805,31]
[398111662,1765379447175,-484.0757,0.00036888,7]
[398111663,1765379447184,-406.74,0.00036986,9]
[398111664,1765379447193,-463.74,0.00036986,2]
[398111665,1765379447203,-463.74,0.00036986,2]
[398111667,1765379447212,-463.74,0.00036986,2]
[398111669,1765379447221,-463.74,0.00036986,2]
[398111671,1765379447231,-369.73,0.00036986,2]
[398111673,1765379447240,-5000.0,0.00037,90]
[398111675,1765379447250,-401.35140112,0.000372,120]
[398111677,1765379447259,-401.35140109,0.000372,120]
[398111679,1765379447268,-401.35140109,0.000372,120]
[398111681,1765379447277,-401.35140109,0.000372,120]
[398111683,1765379447286,-168.53974508,0.00037269,2]
[398111685,1765379447296,-248.81,0.000373,30]
[398111687,1765379447304,-182.30168,0.00037343,31]
[398111689,1765379447313,-362.81871983,0.00037349,2]
[398111691,1765379447323,-300.0,0.00037349,2]
[398111693,1765379447332,-200.0,0.000374,16]
[398111694,1765379447341,-200.0,0.000374,16]
[398111696,1765379447350,-406.74,0.00037534,10]
[398111698,1765379447364,-7719.55085124,0.00037555,2]
[398111700,1765379447372,-1500.0,0.000377,2]
[398111702,1765379447381,-1067.52,0.000377,2]
[398111704,1765379447391,-500.0,0.000377,2]
[398111706,1765379447400,-1000.0,0.00037985,2]
[398111708,1765379447412,-1266.77389453,0.00037999,2]
[398111710,1765379447421,-5000.0,0.00038,120]
[398111712,1765379447430,-251.0,0.00038059,30]
[398111714,1765379447440,-406.74,0.00038082,11]
[398111716,1765379447450,-248.81,0.000384,30]
[398111718,1765379447459,-1594.21,0.000385,30]
[398111720,1765379447468,-406.74,0.0003863,12]
[398111722,1765379447477,-150.21,0.0003863,2]
[398111724,1765379447485,-150.0,0.0003863,2]
[398111726,1765379447494,-150.0,0.0003863,2]
[398111728,1765379447503,-260.72568848,0.00038797,14]
[398111730,1765379447513,-267639.32691542,0.000388,7]
[398111732,1765379447521,-151.0,0.000388,120]
[398111734,1765379447530,-151.0,0.000388,120]
[398111736,1765379447539,-206.028752,0.000388,120]
[398111738,1765379447548,-151.0,0.000388,120]
[398111740,1765379447557,-151.0,0.000388,120]
[398111742,1765379447566,-151.0,0.000388,120]
[398111744,1765379447576,-195.044624,0.000388,120]
[398111746,1765379447585,-151.0,0.000388,120]
[398111748,1765379447594,-151.0,0.000388,70]
[398111749,1765379447603,-151.0,0.000388,120]
[398111751,1765379447612,-151.0,0.000388,120]
[398111753,1765379447621,-288.06354,0.000388,120]
[398111755,1765379447630,-288.06354,0.000388,120]
[398111757,1765379447639,-288.06354,0.000388,120]
[398111759,1765379447648,-151.0,0.000388,120]
[398111761,1765379447657,-288.06354,0.000388,120]
[398111763,1765379447665,-151.0,0.000388,120]
[398111765,1765379447674,-151.0,0.000388,120]
[398111767,1765379447683,-151.0,0.000388,120]
[398111769,1765379447691,-151.0,0.000388,120]
[398111771,1765379447700,-151.0,0.000388,120]
[398111773,1765379447709,-151.0,0.000388,120]
[398111775,1765379447718,-153.298039,0.000388,120]
[398111777,1765379447727,-153.298039,0.000388,120]
[398111779,1765379447735,-153.298039,0.000388,120]
[398111781,1765379447744,-153.298039,0.000388,120]
[398111783,1765379447753,-151.0,0.000388,120]
[398111785,1765379447761,-151.0,0.000388,120]
[398111787,1765379447770,-178.226556,0.000388,120]
[398111789,1765379447779,-151.0,0.000388,120]
[398111791,1765379447787,-151.0,0.000388,120]
[398111793,1765379447796,-151.0,0.000388,120]
[398111795,1765379447805,-151.0,0.000388,120]
[398111796,1765379447813,-151.0,0.000388,120]
[398111798,1765379447822,-170.651038,0.000388,120]
[398111800,1765379447831,-218.107032,0.000388,120]
[398111802,1765379447840,-170.651038,0.000388,120]
[398111804,1765379447849,-170.651038,0.000388,120]
[398111806,1765379447857,-170.651038,0.000388,120]
[398111808,1765379447866,-151.0,0.000388,120]
[398111810,1765379447875,-151.0,0.000388,120]
[398111812,1765379447885,-620.844545,0.000388,120]
[398111814,1765379447893,-620.844545,0.000388,120]
[398111816,1765379447902,-151.0,0.000388,120]
[398111818,1765379447911,-151.0,0.000388,120]
[398111820,1765379447920,-620.844545,0.000388,120]
[398111822,1765379447929,-151.0,0.000388,120]
[398111824,1765379447939,-620.844545,0.000388,120]
[398111826,1765379447947,-175.596144,0.000388,120]
[398111828,1765379447956,-175.596144,0.000388,120]
[398111830,1765379447965,-175.596144,0.000388,120]
[398111832,1765379447973,-175.596144,0.000388,120]
[398111834,1765379447982,-151.0,0.000388,120]
[398111836,1765379447991,-328.10831,0.000388,120]
[398111838,1765379447999,-151.0,0.000388,120]
[398111840,1765379448008,-348.449957,0.000388,120]
[398111842,1765379448018,-328.10831,0.000388,120]
[398111844,1765379448027,-348.449957,0.000388,120]
[398111846,1765379448035,-328.10831,0.000388,120]
[398111848,1765379448044,-348.449957,0.000388,120]
[398111850,1765379448053,-328.10831,0.000388,120]
[398111852,1765379448062,-348.449957,0.000388,120]
[398111854,1765379448071,-151.0,0.000388,120]
[398111856,1765379448080,-151.0,0.000388,120]
[398111858,1765379448088,-582.044535,0.000388,120]
[398111860,1765379448097,-582.044535,0.000388,120]
[398111862,1765379448106,-399.650076,0.000388,120]
[398111864,1765379448115,-582.044535,0.000388,120]
[398111866,1765379448124,-399.650076,0.000388,120]
[398111868,1765379448133,-582.044535,0.000388,120]
[398111870,1765379448142,-399.650076,0.000388,120]
[398111872,1765379448152,-151.0,0.000388,120]
[398111874,1765379448161,-160.952694,0.000388,120]
[398111876,1765379448171,-151.0,0.000388,120]
[398111878,1765379448180,-399.650076,0.000388,120]
[398111879,1765379448188,-160.952694,0.000388,120]
[398111882,1765379448198,-151.0,0.000388,120]
[398111883,1765379448207,-160.952694,0.000388,120]
[398111885,1765379448216,-151.0,0.000388,120]
[398111887,1765379448226,-160.952694,0.000388,120]
[398111889,1765379448234,-4356.6818,0.00038888,30]
[398111892,1765379448244,-5000.0,0.00039,90]
[398111893,1765379448252,-1770.64,0.00039,14]
[398111895,1765379448261,-280.24,0.00039,14]
[398111897,1765379448270,-6953.4834067,0.00039025,30]
[398111899,1765379448279,-1317.96,0.00039162,120]
[398111901,1765379448288,-406.74,0.00039178,13]
[398111903,1765379448297,-238.0,0.00039178,14]
[398111906,1765379448306,-7719.55085124,0.00039412,2]
[398111907,1765379448315,-238.0,0.00039452,14]
[398111909,1765379448324,-150.0,0.00039452,2]
[398111911,1765379448334,-150.0,0.00039452,2]
[398111913,1765379448343,-150.0,0.00039452,2]
[398111915,1765379448352,-150.0,0.00039452,2]
[398111917,1765379448362,-150.0,0.00039452,2]
[398111919,1765379448371,-150.0,0.00039452,2]
[398111921,1765379448381,-150.0,0.00039452,2]
[398111923,1765379448390,-1594.21,0.000395,30]
[398111925,1765379448403,-1257.97,0.00039505,2]
[398111927,1765379448413,-509.07,0.00039654,2]
[398111929,1765379448423,-406.74,0.00039726,14]
[398111931,1765379448433,-238.0,0.00039726,14]
[398111933,1765379448449,-282.98206196,0.000398,120]
[398111935,1765379448459,-300.101953,0.00039828,97]
[398111937,1765379448468,-500.0,0.00039876,31]
[398111939,1765379448477,-409019.43834907,0.0003998,30]
[398111941,1765379448486,-151.0,0.0003998,120]
[398111943,1765379448496,-151.0,0.0003998,120]
[398111945,1765379448505,-185.193836,0.0003998,120]
[398111947,1765379448514,-151.0,0.0003998,120]
[398111949,1765379448525,-151.0,0.0003998,120]
[398111951,1765379448535,-151.0,0.0003998,120]
[398111953,1765379448544,-151.0,0.0003998,70]
[398111954,1765379448556,-151.0,0.0003998,120]
[398111955,1765379448565,-264.0164,0.0003998,120]
[398111956,1765379448574,-288.06354,0.0003998,120]
[398111957,1765379448583,-288.06354,0.0003998,120]
[398111958,1765379448593,-288.06354,0.0003998,120]
[398111959,1765379448603,-151.0,0.0003998,120]
[398111960,1765379448613,-288.063536,0.0003998,120]
[398111961,1765379448622,-151.0,0.0003998,120]
[398111962,1765379448631,-151.0,0.0003998,120]
[398111964,1765379448640,-191.369843,0.0003998,120]
[398111966,1765379448650,-151.0,0.0003998,120]
[398111968,1765379448659,-151.0,0.0003998,120]
[398111970,1765379448668,-151.0,0.0003998,120]
[398111972,1765379448677,-153.298039,0.0003998,120]
[398111974,1765379448686,-153.298039,0.0003998,120]
[398111976,1765379448695,-153.298039,0.0003998,120]
[398111978,1765379448703,-153.298047,0.0003998,120]
[398111980,1765379448712,-151.0,0.0003998,120]
[398111982,1765379448721,-151.0,0.0003998,120]
[398111983,1765379448730,-273.028903,0.0003998,120]
[398111985,1765379448740,-151.0,0.0003998,120]
[398111987,1765379448749,-159.80586,0.0003998,120]
[398111989,1765379448758,-151.0,0.0003998,120]
[398111992,1765379448767,-151.0,0.0003998,120]
[398111994,1765379448776,-170.651038,0.0003998,120]
[398111995,1765379448785,-170.651038,0.0003998,120]
[398111998,1765379448794,-170.651038,0.0003998,120]
[398111999,1765379448803,-170.65103,0.0003998,120]
[398112001,1765379448812,-171.377673,0.0003998,120]
[398112003,1765379448821,-151.0,0.0003998,120]
[398112005,1765379448829,-620.844545,0.0003998,120]
[398112007,1765379448838,-620.844545,0.0003998,120]
[398112009,1765379448848,-151.0,0.0003998,120]
[398112011,1765379448857,-151.0,0.0003998,120]
[398112013,1765379448865,-620.844545,0.0003998,120]
[398112015,1765379448874,-151.0,0.0003998,120]
[398112017,1765379448884,-620.844545,0.0003998,120]
[398112019,1765379448893,-175.596144,0.0003998,120]